[Event "Emanuel Lasker Open 2017"]
[Site "Gorzow"]
[Date "2017.06.13"]
[Round "2"]
[White "Llaneza Vega, Marcos"]
[Black "Janik, Igor"]
[Result "*"]
[ECO "B26"]
[WhiteElo "2424"]
[BlackElo "2422"]
[Annotator "ChessBase"]
[PlyCount "23"]
[EventDate "2017.??.??"]
[EventType "swiss"]
[EventCountry "POL"]
[SourceTitle "playchess.com"]
[Source "ChessBase"]
[SourceQuality "1"]
[TimeControl "40/5400+30:1800+30"]

1. e4 {[%emt 0:00:00]} c5 {[%emt 0:00:00]} 2. Nc3 {[%emt 0:00:00]} Nc6 {[%emt 0:00:00]} 3. g3 {[%emt 0:00:00]} g6 {[%emt 0:00:00]} 4. Bg2 {[%emt 0:00:00]} Bg7 {[%emt 0:00:19]} 5. d3 {[%emt 0:00:00]} d6 {[%emt 0:00:30]} 6. Be3 {[%emt 0:00:21]} Nf6 {[%emt 0:00:30]} 7. h3 {[%emt 0:00:30]} O-O {[%emt 0:00:30]} 8. Nge2 {[%emt 0:00:30]} Rb8 {[%emt 0:00:30]} 9. a4 {[%emt 0:00:30]} a6 {[%emt 0:00:30]} 10. d4 {[%emt 0:00:30]} cxd4 {[%emt 0:00:30]} 11. Nxd4 {[%emt 0:00:30]} Be6 {[%emt 0:00:30]} 12. Rg1 {[%emt 0:00:30]} *

[Event "Emanuel Lasker Open 2017"]
[Site "Gorzow"]
[Date "2017.06.13"]
[Round "2"]
[White "Voloshin, Leonid"]
[Black "Kumala, Aleksander"]
[Result "1-0"]
[ECO "C44"]
[WhiteElo "2389"]
[BlackElo "2224"]
[Annotator "RC"]
[PlyCount "41"]
[EventDate "2017.??.??"]
[EventType "swiss"]
[EventCountry "POL"]
[SourceTitle "playchess.com"]
[Source "ChessBase"]
[SourceQuality "1"]
[TimeControl "40/5400+30:1800+30"]

1. e4 {[%emt 0:00:00]} e5 {[%emt 0:00:12]} 2. Nf3 {[%emt 0:00:00]} Nc6 {[%emt 0:00:04]} 3. d4 {[%emt 0:00:00]} exd4 {[%emt 0:00:06]} 4. Nxd4 {[%emt 0:00:00]} Nf6 {[%emt 0:00:13]} 5. Nxc6 {[%emt 0:00:00]} bxc6 {[%emt 0:00:07]} 6. Bd3 {[%emt 0:00:00]} d5 {[%emt 0:00:29]} 7. e5 {[%emt 0:00:05]} Ng4 {[%emt 0:07:34]} 8. O-O {[%emt 0:00:11]} Bc5 {[%emt 0:00:55]} 9. Bf4 {[%emt 0:00:19]} g5 {[%emt 0:04:49]} 10. Bg3 {[%emt 0:00:42]} h5 {[%emt 0:00:10]} 11. Be2 {[%emt 0:05:17]} Be6 {[%emt 0:12:22]} 12. Nd2 {[%emt 0:11:41]} Qd7 {[%emt 0:05:38]} 13. h3 {[%emt 0:27:56]} h4 {[%emt 0:00:53]} 14. Bh2 {[%emt 0:00:09]} Nh6 {[%emt 0:23:53]} 15. Nb3 {[%emt 0:03:57]} Bb6 {[%emt 0:01:29]} 16. a4 {[%emt 0:07:25]} a5 {[%emt 0:01:33]} 17. Nd4 {[%emt 0:00:48]} Bxd4 {[%emt 0:01:28]} 18. Qxd4 {[%emt 0:00:13]} g4 {[%emt 0:00:14]} 19. hxg4 {[%emt 0:01:05]} Nxg4 {[%emt 0:02:02]} 20. Bxg4 {[%emt 0:02:50]} Bxg4 {[%emt 0:00:10]} 21. e6 {[%emt 0:00:12]} 1-0

[Event "Emanuel Lasker Open 2017"]
[Site "Gorzow"]
[Date "2017.06.13"]
[Round "2"]
[White "Aliavdin, Nikolai"]
[Black "Balinski, Damian"]
[Result "1-0"]
[ECO "B30"]
[WhiteElo "2351"]
[BlackElo "2171"]
[Annotator "NA"]
[PlyCount "89"]
[EventDate "2017.??.??"]
[EventType "swiss"]
[EventCountry "POL"]
[SourceTitle "playchess.com"]
[Source "ChessBase"]
[SourceQuality "1"]
[TimeControl "40/5400+30:1800+30"]

{[%evp 22,80,55,40,84,76,83,93,101,79,122,111,119,100,114,104,120,120,116,87,97,90,95,92,91,32767,32767,32767,126,97,124,32767,138,32767,32767,87,32767,96,92,89,32767,60,32767,56,60,39,32767,59,57,32767,106,32767,32767,32767,415,367,373,149,543,1020,29989]} 1. e4 {[%emt 0:00:00]} c5 {[%emt 0:00:02]} 2. Nf3 {[%emt 0:00:05]} Nc6 {[%emt 0:00:03]} 3. Nc3 {[%emt 0:00:51]} e5 {[%emt 0:00:24]} 4. Bc4 {[%emt 0:00:35]} Be7 {[%emt 0:00:11]} 5. d3 {[%emt 0:00:39]} d6 {[%emt 0:00:16]} 6. Nd2 {[%emt 0:01:13]} Nf6 {[%emt 0:00:04]} 7. Nf1 {[%emt 0:00:07]} Bg4 {[%emt 0:00:05]} 8. f3 {[%emt 0:01:53]} Be6 {[%emt 0:00:03]} 9. Ne3 {[%emt 0:00:12]} O-O {[%emt 0:00:14]} 10. O-O {[%emt 0:01:07]} Nh5 {[%emt 0:01:42] B30: Sicilian: 2...Nc6 3 Bb5, lines without ...g6} (10... Nd7 11. Ncd5 Bg5 12. c3 Na5 13. a3 Nxc4 14. dxc4 g6 15. Qe2 Bh6 16. Bd2 Bg7 17. Rad1 Rc8 18. Be1 {½-½ (42) Shabalov,A (2556)-Nakamura,H (2793) Saint Louis 2017}) 11. Ncd5 {[%emt 0:07:19]} g6 $146 {[%emt 0:27:21]} ({Predecessor:} 11... Bg5 12. g3 Bxe3+ 13. Bxe3 Na5 14. a4 Nxc4 15. dxc4 h6 16. a5 Qd7 17. Rf2 Bxd5 18. Qxd5 Nf6 19. Qd3 Rfc8 20. Rd2 Rc6 21. Kg2 Qe6 22. b3 Rac8 23. c3 Ne8 24. Rad1 Ra6 {½-½ (24) Riccio,E (2632)-Hertel,P (2654) ICCF email 2012}) 12. c3 {[%emt 0:04:57]} Ng7 {[%emt 0:06:08]} 13. f4 {[%emt 0:04:27]} exf4 {[%emt 0:02:36]} 14. Nxf4 {[%emt 0:01:09]} Bxc4 {[%emt 0:04:33]} 15. Nxc4 {[%emt 0:02:08]} Bg5 {[%emt 0:13:55]} 16. Nd5 {[%emt 0:03:44]} Bxc1 {[%emt 0:06:03]} 17. Nf6+ {[%emt 0:03:31]} Kh8 {[%emt 0:00:01]} 18. Qxc1 {[%emt 0:00:15]} Ne8 {[%emt 0:05:19]} 19. Nxe8 {[%emt 0:08:07]} Qxe8 {[%emt 0:00:02]} 20. Nxd6 {[%emt 0:01:24]} Qe7 {[%emt 0:00:52]} 21. Nc4 {[%emt 0:01:20]} Rad8 {[%emt 0:00:48]} 22. Qc2 {[%emt 0:03:35]} Ne5 {[%emt 0:01:01]} 23. Nxe5 {[%emt 0:00:55]} Qxe5 {[%emt 0:00:02]} 24. Rf3 {[%emt 0:00:52]} Rd7 {[%emt 0:02:49]} 25. Raf1 {[%emt 0:04:04]} Kg8 {[%emt 0:01:28]} 26. Qa4 {[%emt 0:04:28]} Rfd8 {[%emt 0:06:51]} 27. Qc4 {[%emt 0:01:28]} Rf8 {[%emt 0:03:00]} 28. h3 {[%emt 0:01:42]} b6 {[%emt 0:00:24]} 29. a4 {[%emt 0:02:23]} Kg7 {[%emt 0:00:33]} 30. Qb5 {[%emt 0:05:01]} Rd6 {[%emt 0:06:32]} 31. a5 {[%emt 0:05:10]} f6 {[%emt 0:05:06]} 32. Ra1 {[%emt 0:05:22]} Rf7 {[%emt 0:00:52]} 33. Qc4 {[%emt 0:01:21]} Rfd7 {[%emt 0:01:58]} 34. axb6 {[%emt 0:00:24]} axb6 {[%emt 0:00:03]} 35. Qb5 {[%emt 0:01:33]} Qg5 {[%emt 0:03:43]} 36. Ra6 {[%emt 0:01:34]} Qc1+ {[%emt 0:00:05]} 37. Kh2 {[%emt 0:00:13]} Qc2 $2 {[%emt 0:02:01]} (37... Qg5 38. Rxb6 Rxb6 39. Qxb6 (39. Qxd7+ Kh6 $18) 39... Qe5+ 40. Kg1 Qe7) 38. Rxb6 {[%emt 0:01:09]} Rxd3 {[%emt 0:00:20]} 39. Rxd3 $16 {[%emt 0:07:08]} ({But not} 39. Rbxf6 $6 Rd2 $18) (39. Rb7 $18 Kh6 40. Rxd7 Rxf3 41. Qb7) 39... Rxd3 $4 {[%emt 0:00:07]} (39... Qxd3 $16 {is more resistant.} 40. Qxd3 (40. Qxc5 Qd2 $14) 40... Rxd3) 40. Qxc5 {[%emt 0:00:00]} Rd2 {[%emt 0:02:09]} 41. Qc7+ {[%emt 0:01:17]} Kh6 {[%emt 0:00:31]} 42. Qf4+ {[%emt 0:00:13]} Kh5 {[%emt 0:01:42]} 43. Qg4+ {[%emt 0:00:23]} Kh6 {[%emt 0:00:02]} 44. Qh4+ {[%emt 0:00:08]} Kg7 {[%emt 0:00:13]} 45. Qxf6+ {[%emt 0:00:19]} 1-0

[Event "Emanuel Lasker Open 2017"]
[Site "Gorzow"]
[Date "2017.06.13"]
[Round "2"]
[White "Lukasiewicz, Krysztof"]
[Black "Koziorowicz, Michal"]
[Result "1-0"]
[ECO "B47"]
[WhiteElo "2098"]
[BlackElo "1858"]
[Annotator "NA RC"]
[PlyCount "91"]
[EventDate "2017.??.??"]
[EventType "swiss"]
[EventCountry "POL"]
[SourceTitle "playchess.com"]
[Source "ChessBase"]
[SourceQuality "1"]
[TimeControl "40/5400+30:1800+30"]

1. e4 {[%emt 0:11:49]} c5 2. Nf3 {[%emt 0:00:30]} e6 3. d4 {[%emt 0:00:30]} cxd4 4. Nxd4 {[%emt 0:00:30]} a6 5. Nc3 {[%emt 0:00:30]} Qc7 6. g3 {[%emt 0:00:30]} Nc6 7. Bg2 {[%emt 0:00:30]} d6 8. O-O {[%emt 0:00:30]} Bd7 9. Be3 {[%emt 0:00:30]} Nf6 {B47: Sicilian: Taimanov: 5 Nc3 Qc7 6 f4, 6 g3 and 6 Be2} 10. Nb3 {[%emt 0:00:30]} (10. f4 Na5 11. Bf2 Rc8 12. Qe2 Nc4 13. Rae1 Nxb2 14. e5 Qxc3 15. exf6 gxf6 16. Qh5 Rc5 17. Bd5 Rxd5 18. Qxd5 {1-0 (60) Naiditsch,A (2696)-Saric,I (2668) Monzon 2016}) 10... Ne5 11. f4 $146 {[%emt 0:00:30]} ({Predecessor:} 11. a4 Be7 12. a5 Nc4 13. Bc1 O-O 14. Qe2 Rac8 15. f4 b5 16. axb6 Qxb6+ 17. Qf2 Bd8 18. h3 Qxf2+ 19. Kxf2 Bb6+ 20. Ke2 a5 21. Rd1 Bc6 22. Nd4 {½-½ (59) Tosic,S (2276)-Cvetkovic,S (2382) Belgrade 2009}) 11... Nc4 12. Bd4 {[%emt 0:00:30]} e5 13. fxe5 {[%emt 0:00:30]} dxe5 14. Rxf6 {[%emt 0:00:30]} gxf6 {[%emt 0:30:12]} 15. Nd5 {[%emt 0:00:32]} Qc6 {[%emt 0:03:52]} 16. Bc3 {[%emt 0:00:30]} Be6 $2 {[%emt 0:00:30]} (16... Be7 $15 {stays ahead.}) 17. Qf1 $2 {[%emt 0:00:30] [#]} (17. Nxf6+ $16 Ke7 18. Nd5+ Ke8 19. Nf6+ Ke7 20. Nd5+ Ke8 21. Qh5) 17... O-O-O $1 {[%emt 0:00:30]} 18. Kh1 {[%emt 0:00:30]} Kb8 {[%emt 0:00:30]} ({Better is} 18... h5 $17) 19. Qxf6 {[%emt 0:00:30]} Bd6 {[%emt 0:00:30]} 20. Na5 {[%emt 0:00:30]} Nxa5 {[%emt 0:00:30]} 21. Bxa5 {[%emt 0:00:30]} Rde8 {[%emt 0:00:30]} 22. Bc3 {[%emt 0:00:30]} Bxd5 {[%emt 0:00:30]} 23. exd5 {[%emt 0:00:30]} Qc7 {[%emt 0:00:30]} 24. Rf1 {[%emt 0:00:30]} Rhf8 {[%emt 0:00:30]} 25. Be4 {[%emt 0:00:30]} h5 {[%emt 0:00:30]} 26. Bd2 {[%emt 0:00:30]} Be7 {[%emt 0:00:30]} 27. Qf5 {[%emt 0:00:30]} h4 {[%emt 0:00:30]} 28. g4 $1 {[%emt 0:00:30]} f6 {[%emt 0:00:30]} 29. h3 {[%emt 0:00:30]} Qc4 {[%emt 0:00:30]} 30. b3 {[%emt 0:00:30]} Qd4 {[%emt 0:00:30]} 31. Bc1 {[%emt 0:00:30]} Rc8 {[%emt 0:00:30]} (31... Bc5 $11) 32. c4 {[%emt 0:00:30]} Bc5 {[%emt 0:00:30]} 33. a3 {[%emt 0:00:30]} a5 {[%emt 0:00:30]} 34. Qf3 $2 {[%emt 0:00:30] [#]} (34. Bh6 $11 {and White has nothing to worry.}) 34... f5 $1 {[%emt 0:00:30]} 35. Bxf5 {[%emt 0:00:30]} Rxf5 {[%emt 0:00:30]} 36. gxf5 {[%emt 0:00:30]} Rg8 {[%emt 0:00:30]} 37. f6 {[%emt 0:00:30]} Rg3 {[%emt 0:00:30]} 38. Qf5 {[%emt 0:00:30]} Qc3 {[%emt 0:00:30]} 39. Kh2 {[%emt 0:00:30]} Ka7 {[%emt 0:00:30]} 40. b4 $1 {[%emt 0:00:30]} axb4 {[%emt 0:30:30]} (40... Rg8 $5 41. Kh1 $8 axb4 42. axb4 Rg3 $11) 41. axb4 {[%emt 0:30:30]} Qxb4 {[%emt 0:00:30]} 42. f7 {[%emt 0:00:30]} (42. Qxe5 Qxc4 43. Qa1+ Kb6 $19) 42... Qb3 $2 {[%emt 0:00:30] [#]} (42... Qc3 $1 $11 {and Black stays safe.}) 43. Bd2 $1 {[%emt 0:00:30]} e4 {[%emt 0:00:30]} 44. Ra1+ $18 {[%emt 0:00:30]} Kb6 {[%emt 0:00:30]} 45. Qe6+ {[%emt 0:00:30]} Kc7 {[%emt 0:00:30]} 46. Bf4+ {[%emt 0:00:30]} 1-0

[Event "Emanuel Lasker Open 2017"]
[Site "Gorzow"]
[Date "2017.06.13"]
[Round "2"]
[White "Przysiecki, Kajetan"]
[Black "Bartnicki, Pawel"]
[Result "0-1"]
[ECO "E91"]
[WhiteElo "1876"]
[BlackElo "2078"]
[Annotator "NA RC"]
[PlyCount "84"]
[EventDate "2017.??.??"]
[EventType "swiss"]
[EventCountry "POL"]
[SourceTitle "playchess.com"]
[Source "ChessBase"]
[SourceQuality "1"]
[TimeControl "40/5400+30:1800+30"]

1. d4 {[%emt 0:00:00]} Nf6 {[%emt 0:00:06]} 2. c4 {[%emt 0:00:00]} g6 {[%emt 0:00:06]} 3. Nc3 {[%emt 0:00:00]} Bg7 {[%emt 0:00:06]} 4. e4 {[%emt 0:00:04]} d6 {[%emt 0:00:05]} 5. Nf3 {[%emt 0:00:10]} O-O {[%emt 0:00:09]} 6. Be2 {[%emt 0:00:07]} Nc6 {[%emt 0:00:26]} 7. d5 {[%emt 0:00:30]} Nb8 {[%emt 0:00:36]} 8. O-O {[%emt 0:00:14]} c5 {[%emt 0:00:13]} 9. h3 {[%emt 0:01:18]} Na6 {[%emt 0:01:58] E91: King's Indian: Classical: 6 Be2, unusual replies including 6...c5 and 6...Bg4} 10. Be3 {[%emt 0:00:53]} (10. Bf4 Bd7 11. e5 dxe5 12. Nxe5 Bf5 13. Bf3 Ne8 14. g4 Bc8 15. Re1 Nd6 16. b3 Qa5 17. Bd2 {1-0 (41) Cosma,I (2401)-Petrescu,G (2087) Mamaia 2015}) 10... Nc7 {[%emt 0:00:35]} 11. a4 {[%emt 0:01:04]} a6 {[%emt 0:00:25]} 12. Qd2 {[%emt 0:01:38]} Rb8 $146 {[%emt 0:01:00]} ({Predecessor:} 12... b6 13. Bh6 Rb8 14. Bxg7 Kxg7 15. Nh2 Bd7 16. f4 b5 17. e5 {½-½ (42) Grobovsek,I (2000)-Matko,M (2200) Ptuj 2005}) 13. a5 {[%emt 0:02:40]} b5 {[%emt 0:02:29]} 14. axb6 {[%emt 0:00:07]} Rxb6 {[%emt 0:00:05]} 15. e5 {[%emt 0:03:56]} Nd7 {[%emt 0:03:53]} 16. exd6 {[%emt 0:01:32]} exd6 {[%emt 0:00:12]} 17. Na4 {[%emt 0:05:47]} Rb4 {[%emt 0:04:09]} 18. Bf4 {[%emt 0:03:20]} Nb6 {[%emt 0:01:46]} 19. Nxb6 {[%emt 0:15:11]} Rxb6 {[%emt 0:00:30]} 20. Ra2 {[%emt 0:00:30]} Bf5 {[%emt 0:00:30]} 21. g4 {[%emt 0:00:30]} Bc8 {[%emt 0:00:30]} 22. Rb1 {[%emt 0:00:30]} h5 {[%emt 0:00:30]} 23. gxh5 {[%emt 0:00:30]} Bxh3 {[%emt 0:00:30]} 24. Ng5 {[%emt 0:00:30]} Bf5 {[%emt 0:00:30]} 25. Bd3 {[%emt 0:00:30]} Bxd3 {[%emt 0:00:30]} 26. Qxd3 {[%emt 0:00:30]} Qf6 {[%emt 0:00:30] [#]} 27. Be3 {[%emt 0:00:30]} (27. Bd2 $1 $16) 27... Rfb8 {[%emt 0:00:30]} 28. hxg6 {[%emt 0:00:30]} fxg6 {[%emt 0:00:30]} 29. Bc1 {[%emt 0:00:30]} Rb3 {[%emt 0:00:30]} 30. Qc2 {[%emt 0:00:30]} R3b6 {[%emt 0:00:30]} 31. Qd3 {[%emt 0:00:30]} Rb3 {[%emt 0:00:30]} 32. Qc2 {[%emt 0:00:30]} R3b6 {[%emt 0:00:30]} 33. Qd3 {[%emt 0:00:30]} Qf5 {[%emt 0:00:30]} 34. Qxf5 {[%emt 0:00:30]} gxf5 {[%emt 0:00:30]} 35. Nf3 {[%emt 0:00:30]} Re8 {[%emt 0:00:30]} 36. b3 {[%emt 0:00:30]} Re4 {[%emt 0:00:30]} 37. Rc2 {[%emt 0:00:30]} Ne8 {[%emt 0:00:30]} 38. Kf1 {[%emt 0:00:30]} Nf6 {[%emt 0:00:30]} 39. Ng5 {[%emt 0:00:30]} Rh4 {[%emt 0:00:30]} 40. Ne6 {[%emt 0:00:30]} Bh6 {[%emt 0:30:30]} 41. f4 {[%emt 0:30:30]} Ne4 {[%emt 0:00:30]} 42. Rg2+ {[%emt 0:00:30]} Kh7 $17 {[%emt 0:00:30]} 0-1